bitfinex-derivatives/quotes_ETHF0:USTF0_20250331
["timestamp","ask_amount","ask_price","bid_price","bid_amount"]
[1743431484195,1.09348,1829.4,1829.3,1.09345]
[1743431484697,1.09351,1829.3,1829.2,2.48347]
[1743431484898,2.49171,1829.3,1829.2,2.48347]
[1743431485799,2.49171,1829.3,1829.2,1.3899]
[1743431485998,1.09357,1829.2,1829.1,1.10183793]
[1743431486192,2.49177,1829.2,1829.1,0.00820793]
[1743431486389,1.09386,1828.8,1828.7,1.09385]
[1743431486591,5.94206,1829.0,1828.6,1.3706]
[1743431486799,4.6,1829.1,1828.6,1.3706]
[1743431486988,3.9484,1829.2,1828.6,7.31319]
[1743431487195,3.9484,1829.2,1828.8,1.09377]
[1743431487196,1.09382,1828.9,1828.8,1.09377]
[1743431487494,1.09373,1829.0,1828.9,1.0937]
[1743431487694,1.09368,1829.1,1829.0,1.09365]
[1743431488105,3.9484,1829.2,1828.9,1.3706]
[1743431488305,1.09366,1829.1,1829.0,1.09363]
[1743431488599,3.9484,1829.2,1828.9,1.3706]
[1743431488600,1.09369,1829.0,1828.9,2.46431]
[1743431488793,1.09368,1829.1,1828.9,1.3706]
[1743431489003,1.09368,1829.1,1829.0,1.09369]
[1743431489804,1.09369,1829.0,1828.9,2.0764]
[1743431490002,1.09381,1828.8,1828.7,0.00820793]
[1743431490195,4.30161,1828.8,1828.7,0.00820793]
[1743431490396,4.30161,1828.8,1828.4,1.09401]
[1743431490397,1.09404,1828.5,1828.4,1.09401]
[1743431490694,1.09394,1828.6,1828.3,4.20315]
[1743431490894,0.6977,1828.7,1828.2,11.24794]
[1743431490895,1.09389,1828.7,1828.6,1.09388]
[1743431491403,1.09393,1828.7,1828.6,1.0939]
[1743431491604,1.09396,1828.6,1828.5,1.09945198]
[1743431492102,1.10201793,1828.8,1828.7,1.09386]
[1743431492402,0.00820793,1828.8,1828.7,1.09386]
[1743431492604,0.00820793,1828.8,1828.7,3.18226]
[1743431492800,3.2078,1829.2,1829.1,1.09363]
[1743431492999,3.2078,1829.2,1828.9,4.598]
[1743431493197,1.09364,1829.1,1829.0,2.47703]
[1743431493397,1.09364,1829.1,1829.0,1.3834]
[1743431493598,1.09381,1828.8,1828.7,1.79882]
[1743431493799,1.09373,1829.0,1828.9,1.09375]
[1743431494198,1.10187793,1829.1,1829.0,1.09369]
[1743431494602,0.00820793,1829.1,1828.8,1.3834]
[1743431494798,4.30153,1829.0,1828.9,1.09375]
[1743431494998,0.00820793,1829.1,1828.8,1.3834]
[1743431495207,1.10187793,1829.1,1829.0,1.09369]
[1743431495402,0.00820793,1829.1,1829.0,1.09369]
[1743431496101,1.10183793,1829.1,1829.0,1.09369]
[1743431496404,1.09374,1829.0,1828.9,1.09375]
[1743431496605,0.00820793,1829.1,1829.0,1.09369]
[1743431498108,0.00820793,1829.1,1829.0,2.47979]
[1743431500304,1.10183793,1829.1,1829.0,1.3861]
[1743431500909,1.10183793,1829.1,1829.0,2.47979]
[1743431501314,0.00820793,1829.1,1829.0,2.47979]
[1743431503108,23.21380869,1829.5,1829.4,1.09345]
[1743431503408,23.21380869,1829.5,1829.4,5.68845]
[1743431503603,20.45471804,1829.5,1829.4,8.18845]
[1743431503807,1.09315,1829.9,1829.4,7.82165]
[1743431504017,5.70504,1830.0,1829.6,2.7333]
[1743431504209,2.49724,1830.0,1829.9,1.09315]
[1743431504425,0.7099,1830.0,1829.9,1.09315]
[1743431504603,0.71810793,1830.0,1829.9,1.09315]
[1743431504803,0.00820793,1830.0,1829.9,1.09315]
[1743431505004,0.00820793,1830.0,1829.9,5.69445]
[1743431506716,0.00820793,1830.0,1829.9,6.37825]
[1743431509413,0.00820793,1830.0,1829.9,5.69445]
[1743431509614,2.48629793,1830.0,1829.9,1.3935]
[1743431509928,4.57610793,1830.0,1829.6,0.00820793]
[1743431510216,4.30107,1829.7,1829.6,0.00820793]
[1743431511014,1.09327,1829.7,1829.6,0.00820793]
[1743431511211,5.70607,1829.7,1829.6,0.00820793]
[1743431511916,1.405,1829.7,1829.6,1.10153793]
[1743431512521,2.49827,1829.7,1829.6,1.10153793]
[1743431512816,1.405,1829.7,1829.6,1.10153793]
[1743431513007,5.70607,1829.7,1829.6,0.00820793]
[1743431513515,5.70607,1829.7,1829.6,1.10153793]
[1743431513715,5.70607,1829.7,1829.6,0.00820793]
[1743431514221,1.09345,1829.4,1829.3,1.09348]
[1743431514410,9.84604,1829.7,1829.2,1.4755]
[1743431514411,1.09338,1829.6,1829.2,4.2094]
[1743431514608,1.5049,1829.3,1829.2,2.56907]
[1743431516029,3.9195,1829.5,1829.4,1.09345]
[1743431516621,0.7117,1829.5,1829.4,1.09345]
[1743431516823,1.5049,1829.7,1829.6,1.09333]
[1743431517027,1.09333,1829.6,1829.5,1.4565]
[1743431517521,2.59821,1829.7,1829.5,1.4565]
[1743431517717,1.09333,1829.6,1829.5,2.54985]
[1743431517918,2.47963,1829.6,1829.5,2.54985]
[1743431518118,1.3863,1829.6,1829.5,2.54985]
[1743431518326,2.47963,1829.6,1829.5,2.54985]
[1743431518724,1.09349,1829.4,1829.3,1.09348]
[1743431518925,1.09346,1829.4,1829.3,1.09346]
[1743431519426,1.09351,1829.3,1829.2,2.55002]
[1743431519622,1.09357,1829.2,1829.1,0.00820793]
[1743431519829,1.09381,1828.8,1828.7,2.54725]
[1743431520021,3.2078,1828.9,1828.8,1.09381]
[1743431520329,4.3016,1828.9,1828.7,1.4534]
[1743431520625,2.52891,1829.2,1829.0,1.09369]
[1743431520923,1.09371,1829.0,1828.9,1.09373]
[1743431521224,4.30146,1829.1,1829.0,1.09369]
[1743431521430,1.09369,1829.0,1828.9,0.00547198]
[1743431521721,1.09363,1829.1,1828.9,0.00547198]
[1743431521923,1.09369,1829.0,1828.9,1.09919198]
[1743431522224,5.76237,1829.1,1829.0,1.09369]
[1743431522529,5.76237,1829.1,1828.9,0.00547198]
[1743431522530,2.55459,1829.0,1828.9,0.00547198]
[1743431522826,2.55459,1829.0,1828.9,1.09922198]
[1743431523031,1.4609,1829.0,1828.9,1.09922198]
[1743431523621,2.55459,1829.0,1828.9,0.00547198]
[1743431524222,2.7346,1828.8,1828.3,3.2078]
[1743431524424,1.09395,1828.6,1828.5,1.09396]
[1743431524620,2.8897,1828.7,1828.4,1.3835]
[1743431524820,1.09398,1828.5,1828.4,2.4775]
[1743431525020,1.09397,1828.6,1828.5,1.09397]
[1743431525221,1.4486,1828.6,1828.5,1.09397]
[1743431525531,2.54257,1828.6,1828.5,1.09398]
[1743431525732,1.4486,1828.6,1828.5,1.09398]
[1743431525925,3.2078,1829.1,1828.6,2.73473]
[1743431526126,1.4588,1829.0,1828.7,1.4688]
[1743431526339,1.4588,1829.0,1828.7,2.56262]
[1743431526630,1.4588,1829.0,1828.8,1.09381]
[1743431526631,4.30159,1828.9,1828.8,1.09381]
[1743431526823,3.2078,1828.9,1828.8,1.09381]
[1743431527029,3.2078,1828.9,1828.7,1.4688]
[1743431527227,1.4588,1828.8,1828.7,2.56262]
[1743431528224,1.4588,1828.8,1828.7,2.56266]
[1743431528425,1.09373,1829.0,1828.9,1.09375]
[1743431528626,1.09376,1828.9,1828.8,1.09377]
[1743431528826,2.55251,1829.0,1828.9,1.09375]
[1743431529426,1.4588,1829.0,1828.7,1.4688]
[1743431529627,1.453,1829.2,1828.9,1.09375]
[1743431529822,0.00820793,1829.3,1829.2,1.09357]
[1743431530428,0.00820793,1829.3,1829.2,2.56567]
[1743431531128,1.09332,1829.7,1829.3,2.73364]
[1743431531335,2.47302,1829.7,1829.5,1.09339]
[1743431531538,1.3797,1829.7,1829.6,2.56543]
[1743431531833,1.3797,1829.7,1829.4,0.7216]
[1743431532034,1.09333,1829.6,1829.5,2.55394]
[1743431532334,2.48121793,1829.7,1829.6,1.09333]
[1743431532539,0.00820793,1829.7,1829.6,4.30113]
[1743431532839,1.3843,1830.1,1830.0,1.09309]
[1743431533030,1.3843,1830.1,1829.9,2.55371]
[1743431533225,1.3843,1830.1,1830.0,1.09309]
[1743431533226,2.47737,1830.1,1830.0,1.09309]
[1743431533425,0.7326,1830.3,1830.2,1.09297]
[1743431533641,3.20984,1830.3,1830.2,1.09297]
[1743431533835,1.09298,1830.2,1829.9,1.4606]
[1743431534040,2.1169,1830.3,1830.2,1.09297]
[1743431534230,0.00820793,1830.4,1830.3,1.09291]
[1743431534631,1.39250793,1830.4,1830.3,1.09291]
[1743431535436,0.00820793,1830.4,1830.3,1.09291]
[1743431535735,0.00820793,1830.4,1830.3,2.59551]
[1743431535938,7.93e-06,1830.4,1830.3,5.09551]
[1743431537539,23.50358624,1831.2,1831.1,1.09243]
[1743431537743,22.32484624,1831.2,1831.1,11.38423]
[1743431538037,9.45467844,1831.2,1831.1,11.81030477]
[1743431538233,1.3664,1832.1,1831.1,18.29796399]
[1743431538436,6.83545634,1832.1,1832.0,1.09189]
[1743431538732,78.77436614,1832.3,1831.8,5.93779]
[1743431539040,1.3664,1832.4,1832.3,1.09172]
[1743431539229,1.3664,1832.4,1832.0,7.7918]
[1743431539230,5.46905634,1832.5,1832.4,1.09166]
[1743431539438,6.83545634,1832.6,1832.3,1.0917]
[1743431539638,0.00820793,1832.5,1832.3,1.0917]
[1743431539828,1.09984793,1832.5,1832.3,0.00818531]
[1743431540032,1.37460793,1832.5,1832.4,1.09166]
[1743431540230,1.37460793,1832.5,1832.3,0.00818531]
[1743431540231,5.46905634,1832.4,1832.3,0.00818531]
[1743431540440,7.92711634,1832.4,1832.3,0.00818531]
[1743431540833,6.83545634,1832.4,1832.3,1.09990531]
[1743431541028,6.83545634,1832.4,1832.3,0.00818531]
[1743431541239,7.92711634,1832.4,1832.3,0.00818531]
[1743431541737,7.92711634,1832.4,1832.1,2.51571]
[1743431541738,2.72936,1832.3,1831.7,1.09204]
[1743431541934,4.627,1832.2,1831.7,1.09205]
[1743431542235,1.09196,1831.9,1831.7,1.09205]
[1743431542439,1.4192,1831.8,1831.7,1.09205]
[1743431542634,6.88825634,1831.8,1831.6,2.516]
[1743431542834,5.46905634,1831.7,1831.6,0.00818531]
[1743431543034,6.88825634,1831.7,1831.6,1.10031531]
[1743431543539,6.88825634,1831.7,1831.6,0.00818531]
[1743431543940,7.98032634,1831.7,1831.6,0.00818531]
[1743431544139,7.98032634,1831.7,1830.8,57.81251]
[1743431544140,1.09228,1831.4,1831.1,4.58]
[1743431544342,1.4175,1831.3,1831.2,1.09231]
[1743431544540,1.09215,1831.6,1831.4,1.09223]
[1743431544733,6.88655634,1831.5,1831.3,1.09227]
[1743431545042,5.46905634,1831.6,1831.2,4.6076]
[1743431545236,1.0922,1831.5,1831.3,1.09227]
[1743431545434,7.97875634,1831.5,1831.3,1.09231]
[1743431545633,5.46905634,1831.4,1831.3,1.09227]
[1743431545936,6.88655634,1831.4,1831.2,5.70812778]
[1743431546133,5.46905634,1831.3,1831.2,5.70811778]
[1743431546335,6.88655634,1831.3,1831.2,1.40797778]
[1743431546529,7.97886634,1831.3,1831.2,0.00817778]
[1743431546835,1.09254,1831.0,1830.8,4.579]
[1743431547036,1.4175,1830.9,1830.8,5.67161]
[1743431547346,6.88655634,1830.9,1830.8,5.67161]
[1743431547841,5.46905634,1830.9,1830.8,7.12411]
[1743431549841,6.56162634,1830.9,1830.7,1.09263]
[1743431550041,6.90905634,1830.8,1830.5,3.2078]
[1743431550250,1.44,1830.8,1830.7,1.09267]
[1743431550748,3.2078,1831.2,1830.8,1.09261]
[1743431550945,6.56135634,1831.4,1831.2,1.09236]
[1743431551144,1.4887,1831.3,1831.2,1.09237]
[1743431551341,6.95775634,1831.3,1831.2,1.09237]
[1743431551546,8.05009634,1831.3,1831.1,1.09239]
[1743431551746,5.46905634,1831.2,1830.9,3.2078]
[1743431551949,6.95775634,1831.1,1831.0,1.09246]
[1743431553353,6.95775634,1831.1,1830.9,1.09252]
[1743431553550,5.46905634,1831.0,1830.9,1.09252]
[1743431553747,6.97395634,1831.0,1830.9,1.09252]
[1743431554148,8.06644634,1831.0,1830.8,1.09256]
[1743431554457,5.46905634,1830.9,1830.8,1.09256]
[1743431554642,6.97395634,1830.9,1830.8,1.09256]
[1743431555040,1.5049,1830.9,1830.8,1.09256]
[1743431555252,0.7477,1831.5,1831.4,1.09225]
[1743431555444,0.7477,1831.5,1830.8,2.5]
[1743431555445,0.76218531,1831.6,1831.5,1.09219]
[1743431555950,6.23124165,1831.6,1831.5,1.09219]
[1743431556151,5.47724165,1831.6,1831.5,1.09219]
[1743431556647,6.87784165,1831.6,1831.5,1.09219]
[1743431556842,6.87784165,1831.6,1831.5,4.29999]
[1743431557048,1.40878531,1831.6,1831.5,4.29999]
[1743431557253,6.87784165,1831.6,1831.5,4.29999]
[1743431557554,0.00818531,1831.6,1831.5,5.68819]
[1743431558345,0.00818531,1831.6,1831.5,8.18819]
[1743431558346,5.31e-06,1831.6,1831.5,8.18819]
[1743431559553,5.31e-06,1831.6,1831.5,5.68819]
[1743431559755,5.31e-06,1831.6,1831.5,10.26319]
[1743431560258,5.31e-06,1831.6,1831.5,12.76319]
[1743431561258,5.31e-06,1831.6,1831.5,10.26219]
[1743431562351,5.46906165,1831.6,1831.5,10.26219]
[1743431562551,5.31e-06,1831.6,1831.5,10.26219]
[1743431563353,5.46906165,1831.6,1831.5,10.26219]
[1743431563961,5.46906165,1831.6,1831.5,5.68819]
[1743431564263,5.46906165,1831.6,1831.5,8.87299]
[1743431564452,5.46906165,1831.6,1831.5,4.29999]
[1743431565460,5.46906165,1831.6,1831.5,5.79949]
[1743431565762,5.31e-06,1831.6,1831.5,6.53419]
[1743431568357,5.31e-06,1831.6,1831.5,9.03419]
[1743431569062,5.97,1833.1,1832.5,1.09157]
[1743431569366,6.91285634,1832.6,1832.5,1.0916]
[1743431569751,6.91285634,1832.6,1832.3,1.4383]
[1743431569961,2.53534,1832.6,1832.5,1.0916]
[1743431570152,1.45198531,1832.6,1832.5,1.0916]
[1743431570363,6.92104165,1832.6,1832.5,1.0916]
[1743431571563,12.62884165,1832.6,1832.3,1.0998753]
[1743431571861,5.46905634,1832.5,1832.4,1.09166]
[1743431572065,5.46905634,1832.5,1832.4,4.29946]
[1743431572262,6.89975634,1832.5,1832.4,5.66166]
[1743431572556,6.89975634,1832.5,1832.4,1.09166]
[1743431574554,6.89975634,1832.5,1832.4,5.78786]
[1743431574555,4.26161794,1832.5,1832.4,5.78786]
[1743431574762,0.00818531,1832.6,1832.5,1.0916]
[1743431575064,0.00818531,1832.6,1832.5,3.328]
[1743431575258,0.00818531,1832.6,1832.5,4.0265]
[1743431575464,5.31e-06,1832.6,1832.5,8.5955]
[1743431576361,5.31e-06,1832.6,1832.5,11.0955]
[1743431577763,1.4255,1833.3,1833.2,1.09118]
[1743431577971,1.09105,1833.5,1833.3,1.09108]
[1743431578162,1.09107,1833.4,1833.3,1.0911]
[1743431578356,1.09112,1833.3,1832.9,7.2964]
[1743431578562,1.09118,1833.2,1833.1,1.09119]
[1743431578762,4.26161794,1833.2,1832.8,3.2078]
[1743431578962,1.09131,1833.0,1832.8,3.17639102]
[1743431579164,1.81086,1832.9,1832.8,0.00818531]
[1743431579368,7.45937794,1832.9,1832.8,0.00818531]
[1743431579569,6.36801794,1832.9,1832.8,1.09960531]
[1743431580866,1.3869,1832.9,1832.8,1.09960531]
[1743431581476,0.7049,1833.2,1833.1,1.09124]
[1743431581971,4.96651794,1833.2,1833.1,1.09124]
[1743431582570,4.26161794,1833.2,1833.1,1.09124]
[1743431582768,5.66481794,1833.2,1833.1,2.45334]
[1743431582964,5.66481794,1833.2,1833.1,5.66114]
[1743431583166,0.00818531,1833.3,1833.2,1.09118]
[1743431583474,5.31e-06,1833.3,1833.2,3.56696218]
[1743431583771,5.31e-06,1833.3,1833.2,6.80946218]
[1743431584294,0.7153,1834.0,1833.9,1.09076]
[1743431584577,4.26161794,1834.0,1833.9,4.29856]
[1743431584766,3.2078,1834.9,1834.2,2.7264]
[1743431584971,4.26161794,1834.8,1834.7,1.09029]
[1743431585171,7.45460148,1834.9,1834.8,1.09023]
[1743431585375,4.26161794,1834.9,1834.8,1.09023]
[1743431585575,5.76051794,1834.9,1834.8,5.65423]
[1743431585775,1.4989,1834.9,1834.8,5.65423]
[1743431585982,5.76051794,1834.9,1834.8,4.564]
[1743431586681,6.85068794,1834.9,1834.8,4.564]
[1743431586877,6.85068794,1834.9,1834.7,0.00818531]
[1743431586878,1.09023,1834.8,1834.7,0.00818531]
[1743431587085,1.09045,1834.5,1834.2,4.564]
[1743431587383,9.71671794,1834.8,1833.9,3.2078]
[1743431587384,3.2078,1834.4,1833.9,3.2078]
[1743431587584,7.67363794,1834.7,1833.9,11.95608]
[1743431587585,1.09043,1834.5,1833.9,11.95608]
[1743431587775,4.26161794,1834.6,1834.1,3.2078]
[1743431588081,4.26161794,1834.5,1834.3,1.09051]
[1743431588282,4.26161794,1834.5,1834.2,0.00818531]
[1743431588481,4.26161794,1834.4,1834.3,1.09051]
[1743431588778,4.26161794,1834.5,1834.4,1.09047]
[1743431588979,4.26161794,1834.6,1834.5,1.09039]
[1743431589679,4.26161794,1834.6,1834.4,1.09043]
[1743431589874,4.26161794,1834.6,1834.2,4.57018531]
[1743431589875,4.26161794,1834.5,1834.3,1.09048]
[1743431590076,4.26161794,1834.5,1834.2,7.77798531]
[1743431590377,1.4902,1834.4,1834.3,1.09053]
[1743431590777,5.75181794,1834.4,1834.3,1.09053]
[1743431591271,5.75181794,1834.4,1834.3,2.57533]
[1743431591477,1.4902,1834.4,1834.3,2.57533]
[1743431591883,0.6862,1834.7,1834.6,1.09035]
[1743431592380,6.03812794,1834.7,1834.4,1.09044]
[1743431592681,6.03812794,1834.7,1834.2,4.56918531]
[1743431592682,4.26161794,1834.6,1834.5,1.09041]
[1743431592876,4.26161794,1834.6,1834.3,3.2078]
[1743431593078,4.26161794,1834.6,1834.2,4.56918531]
[1743431593079,4.26161794,1834.5,1834.2,0.00818531]
[1743431593277,2.54481,1834.4,1834.2,0.00818531]
[1743431593479,5.71591794,1834.4,1834.2,0.00818531]
[1743431593780,4.26161794,1834.3,1834.2,1.09876531]
[1743431593982,1.4543,1834.3,1834.2,4.30656531]
[1743431594288,0.6862,1834.7,1834.3,2.72632]
[1743431594481,0.6862,1834.7,1834.6,1.09035]
[1743431594678,4.26161794,1834.6,1834.4,1.4777]
[1743431594981,4.26161794,1834.6,1834.5,1.09037]
[1743431595184,4.26161794,1834.6,1834.4,3.2078]
[1743431595185,0.7389,1834.8,1834.4,5.93391]
[1743431595380,4.26161794,1834.7,1834.5,5.65035]
[1743431595585,1.4543,1834.6,1834.5,5.65035]
[1743431595884,1.09043,1834.5,1834.3,1.09051]
[1743431596080,1.3868,1834.4,1834.3,1.09051]
[1743431596284,5.64841794,1834.4,1834.3,1.09051]
[1743431596475,5.64841794,1834.4,1834.2,4.30653531]
[1743431596681,4.26161794,1834.3,1834.2,4.30656531]
[1743431596984,1.3868,1834.3,1834.2,4.30656531]
[1743431597179,5.64841794,1834.3,1834.2,4.30656531]
[1743431597379,1.3868,1834.3,1834.2,4.30656531]
[1743431597782,2.53305,1834.8,1834.6,1.09033]
[1743431597987,5.64841794,1834.7,1834.6,1.09033]
[1743431598484,5.64841794,1834.7,1834.6,4.29813]
[1743431598679,0.00818531,1835.0,1834.9,1.09017]
[1743431598890,1.43668531,1835.0,1834.9,5.64917]
[1743431599084,5.69830325,1835.0,1834.9,5.64917]
[1743431599488,5.69830325,1835.0,1834.8,3.2078]
[1743431599786,4.26161794,1834.9,1834.6,10.49166]
[1743431600087,4.26161794,1834.8,1834.7,1.09029]
[1743431600287,0.00818531,1835.0,1834.9,1.09017]
[1743431600686,4.26980325,1835.0,1834.6,3.2078]
[1743431600880,4.26161794,1834.9,1834.8,1.09019]
[1743431601080,1.09026,1834.8,1834.6,8.85611]
[1743431601287,1.09029,1834.7,1834.5,1.0904]
[1743431601487,4.26161794,1834.7,1834.6,1.09035]
[1743431601683,4.26161794,1834.6,1834.5,1.09041]
[1743431601881,5.35190794,1834.7,1834.6,1.0903]
[1743431602079,4.26161794,1834.7,1834.4,1.4007]
[1743431602287,4.26161794,1834.6,1834.5,1.09036]
[1743431602486,4.26161794,1834.7,1834.6,1.09031]
[1743431602692,4.26161794,1834.7,1834.5,1.09036]
[1743431602693,5.35190794,1834.7,1834.5,1.09036]
[1743431602892,5.35196794,1834.6,1834.5,1.09036]
[1743431603095,1.78196,1834.6,1834.5,1.09041]
[1743431603392,1.78196,1834.6,1834.4,4.29823]
[1743431603393,1.09041,1834.5,1834.4,4.29823]
[1743431603689,4.26161794,1834.5,1834.4,4.29823]
[1743431604191,0.6916,1834.6,1834.5,1.09041]
[1743431604487,4.26161794,1834.6,1834.5,1.09041]
[1743431605986,4.26161794,1834.6,1834.4,3.2078]
[1743431606191,4.26161794,1834.5,1834.4,4.29826]
[1743431606391,4.26161794,1834.6,1834.4,4.29824]
[1743431606696,5.35200794,1834.6,1834.4,4.29824]
[1743431606987,4.26161794,1834.5,1834.4,4.29827]
[1743431607189,0.7212,1834.7,1834.6,1.09035]
[1743431607385,4.98281794,1834.7,1834.6,1.09035]
[1743431607693,4.26161794,1834.7,1834.4,5.93392]
[1743431607892,4.26161794,1834.6,1834.5,1.09041]
[1743431608086,0.7346,1834.8,1834.7,1.09029]
[1743431608291,1.0903,1834.7,1834.4,5.93391]
[1743431608490,4.26161794,1834.7,1834.6,1.09035]
[1743431608688,0.7346,1834.8,1834.7,1.09029]
[1743431609093,4.99621794,1834.8,1834.7,1.09029]
[1743431609287,4.99621794,1834.8,1834.6,1.09033]
[1743431609486,4.26161794,1834.7,1834.6,1.09035]
[1743431609781,4.26161794,1834.7,1834.4,3.2078]
[1743431609782,5.35193794,1834.7,1834.4,3.2078]
[1743431609982,4.26161794,1834.6,1834.4,3.2078]
[1743431610187,1.09041,1834.5,1834.4,3.2078]
[1743431610390,1.09041,1834.5,1834.3,1.0905]
[1743431610596,4.26161794,1834.4,1834.3,1.09053]
[1743431610789,4.26161794,1834.4,1834.2,3.21598531]
[1743431610790,4.26161794,1834.6,1834.5,1.09041]
[1743431610989,0.7346,1834.8,1834.5,1.09041]
[1743431611297,4.26161794,1834.7,1834.6,1.09035]
[1743431611593,4.26161794,1834.7,1834.6,4.29815]
[1743431612297,0.00818531,1835.0,1834.9,1.09017]
[1743431612495,4.26980325,1835.0,1834.9,4.29797]
[1743431612791,4.26980325,1835.0,1834.9,5.79547]
[1743431612995,4.26980325,1835.0,1834.9,4.29797]
[1743431613395,4.26980325,1835.0,1834.9,5.79547]
[1743431613598,4.26980325,1835.0,1834.9,2.58767]
[1743431613790,4.26980325,1835.0,1834.9,5.79547]
[1743431614495,0.00818531,1835.0,1834.9,5.79547]
[1743431614795,1.08972,1835.7,1835.5,1.08979]
[1743431615294,4.26161794,1835.6,1835.5,1.08981]
[1743431615500,4.26161794,1835.6,1835.4,1.08984]
[1743431615691,4.26161794,1835.5,1835.4,1.08987]
[1743431615893,1.464,1835.5,1835.4,4.29767]
[1743431616200,0.00818531,1835.7,1835.6,1.08975]
[1743431616495,4.26980325,1835.7,1835.6,1.08975]
[1743431616690,0.00818531,1835.7,1835.6,1.08975]
[1743431616885,0.00818531,1835.7,1835.6,4.29755]
[1743431618095,0.00818531,1835.7,1835.6,2.59475]
[1743431618291,4.26980325,1835.7,1835.6,1.08975]
[1743431618798,5.35952325,1835.7,1835.4,2.59484]
[1743431618994,5.62241794,1835.6,1835.3,0.00818531]
[1743431619295,5.62241794,1835.6,1835.5,1.08981]
[1743431619484,1.3608,1835.6,1835.5,1.08981]
[1743431619693,5.62241794,1835.6,1835.4,3.2078]
[1743431619898,4.26161794,1835.5,1835.3,0.00818531]
[1743431620198,3.23677,1835.4,1835.3,0.00818531]
[1743431620590,6.40851794,1835.4,1835.3,0.00818531]
[1743431620795,7.49838794,1835.4,1835.3,0.00818531]
[1743431621185,6.40851794,1835.4,1835.3,0.00818531]
[1743431621386,7.49838794,1835.4,1835.3,0.00818531]
[1743431621591,1.09008,1835.1,1834.8,1.0902]
[1743431621798,1.4059,1835.0,1834.7,7.7608]
[1743431621994,1.4059,1835.0,1834.9,1.09017]
[1743431622296,4.26161794,1834.9,1834.8,2.45703]
[1743431622596,5.35179794,1834.9,1834.7,8.85109]
[1743431622795,5.66751794,1834.8,1834.7,7.76898531]
[1743431622992,1.4059,1834.8,1834.7,4.56118531]
[1743431623195,6.75774794,1834.8,1834.7,0.00818531]
[1743431624002,7.47794794,1834.8,1834.7,0.00818531]
[1743431624299,6.38771794,1834.8,1834.7,0.00818531]
[1743431624503,7.47794794,1834.8,1834.7,0.00818531]
[1743431625400,1.09037,1834.6,1834.4,1.09045]
[1743431625595,1.09037,1834.6,1834.3,5.6435]
[1743431625596,1.4149,1834.5,1834.3,5.6435]
[1743431625795,5.67651794,1834.5,1834.3,4.553]
[1743431626003,1.4149,1834.5,1834.4,1.09047]
[1743431626308,0.7224,1834.9,1834.8,1.09023]
[1743431626803,4.98401794,1834.9,1834.8,1.09023]
[1743431627003,0.00818531,1835.0,1834.9,1.09017]
[1743431627200,4.26980325,1835.0,1834.9,1.09017]
[1743431627602,4.26980325,1835.0,1834.9,2.55707]
[1743431627905,0.00818531,1835.0,1834.9,7.11007]
[1743431628399,0.744,1835.5,1835.4,1.08987]
[1743431628607,2.1419,1835.5,1835.4,1.08987]
[1743431628812,6.40351794,1835.5,1835.4,1.08987]
[1743431629005,5.65951794,1835.5,1835.4,1.08987]
[1743431629193,5.65951794,1835.5,1835.4,2.53547]
[1743431630106,0.00818531,1835.6,1835.5,1.08981]
[1743431630303,1e-08,1835.6,1835.5,10.99371]
[1743431631404,1e-08,1835.6,1835.5,11.43851998]
[1743431631608,4.26161795,1835.6,1835.5,10.99371]
[1743431632207,4.26161795,1835.6,1835.5,3.2078]
[1743431632401,5.35136795,1835.6,1835.5,3.2078]
[1743431632602,1e-08,1835.6,1835.5,3.2078]
[1743431632804,1e-08,1835.6,1835.5,4.29761]
[1743431633002,4.26161795,1835.6,1835.5,8.84961]
[1743431633197,4.26161795,1835.6,1835.5,4.29761]
[1743431633707,4.26161795,1835.6,1835.4,1.08985]
[1743431634009,5.71201794,1835.5,1835.3,9.26788531]
[1743431634210,5.71201794,1835.5,1835.4,1.08987]
[1743431634414,1.4504,1835.5,1835.4,1.08987]
[1743431634710,5.71201794,1835.5,1835.3,7.76698531]
[1743431634917,4.26161794,1835.5,1835.4,1.08987]
[1743431635608,4.26161794,1835.5,1835.3,7.76698531]
[1743431635910,4.26161794,1835.4,1835.3,0.00818531]
[1743431636100,6.79328794,1835.4,1835.3,0.00818531]
[1743431636301,7.16781794,1835.4,1835.3,1.09811531]
[1743431636603,7.16781794,1835.4,1835.3,0.00818531]
[1743431636912,7.16781794,1835.4,1835.3,1.09811531]
[1743431637110,5.72601794,1835.4,1835.3,1.09811531]
[1743431638404,1e-08,1835.6,1835.5,1.08981]
[1743431638617,4.26161794,1835.5,1835.3,4.55818531]
[1743431638910,4.26161794,1835.5,1835.4,1.08987]
[1743431639119,4.26161794,1835.4,1835.3,1.09810531]
[1743431639412,4.26161794,1835.4,1835.3,1.09811531]
[1743431639613,5.64291794,1835.4,1835.3,1.09811531]
[1743431639813,5.64291794,1835.4,1835.3,0.00818531]
[1743431640003,1.3813,1835.4,1835.3,1.09811531]
[1743431640204,5.64291794,1835.4,1835.3,4.30591531]
[1743431640405,1e-08,1835.6,1835.5,1.08981]
[1743431640611,1e-08,1835.6,1835.5,8.84761]
[1743431642010,4.26161795,1835.6,1835.5,4.29761]
[1743431642215,4.26161795,1835.6,1835.5,8.84661]
[1743431642413,4.26161795,1835.6,1835.5,4.29761]
[1743431642609,4.26161795,1835.6,1835.5,8.84661]
[1743431642810,4.26161795,1835.6,1835.5,4.29761]
[1743431644317,4.26161795,1835.6,1835.5,5.78281]
[1743431644517,4.26161795,1835.6,1835.5,4.29761]
[1743431645815,4.26161795,1835.6,1835.5,8.84661]
[1743431647518,4.26161795,1835.6,1835.5,4.29761]
[1743431647715,4.97741795,1835.6,1835.5,4.29761]
[1743431648418,6.06716795,1835.6,1835.5,3.2078]
[1743431648624,6.06716795,1835.6,1835.3,0.00818531]
[1743431648625,4.97741795,1835.6,1835.3,0.00818531]
[1743431648918,5.66111794,1835.5,1835.3,0.00818531]
[1743431649316,1.08987,1835.4,1835.3,0.00818531]
[1743431649519,6.35481794,1835.4,1835.3,0.00818531]
[1743431649716,6.35481794,1835.4,1835.3,1.09811531]
[1743431650117,5.66111794,1835.4,1835.3,4.30591531]
[1743431651011,4.26161794,1835.4,1835.3,5.74591531]